[Event "November 21 Late 2023"]
[Site "https://www.chess.com"]
[Date "2023.11.21"]
[Round "2"]
[White "Sturt, Raven"]
[Black "Bortnyk, Mykola"]
[Result "0-1"]
[Board "19"]
[TimeControl "180+1"]
[WhiteFideId "2007304"]
[BlackFideId "14120836"]
[WhiteElo "2408"]
[BlackElo "2592"]
[WhiteTeam "USA"]
[BlackTeam "UKR"]
[WhiteClock "0:00:00"]
[BlackClock "0:00:33"]

1. f4 {[%clk 0:03:00]}  g6 {[%clk 0:02:51]} 2. Nf3 {[%clk 0:03:00]}  Bg7 {[%clk 0:02:52]} 3. e3 {[%clk 0:02:56]}  c5 {[%clk 0:02:51]} 4. c4 {[%clk 0:02:48]}  Nc6 {[%clk 0:02:51]} 5. Nc3 {[%clk 0:02:48]}  Nf6 {[%clk 0:02:48]} 6. Be2 {[%clk 0:02:48]}  d5 {[%clk 0:02:48]} 7. cxd5 {[%clk 0:02:48]}  Nxd5 {[%clk 0:02:49]} 8. O-O {[%clk 0:02:49]}  O-O {[%clk 0:02:46]} 9. Qb3 {[%clk 0:02:48]}  Ndb4 {[%clk 0:02:44]} 10. a3 {[%clk 0:02:40]}  Be6 {[%clk 0:02:31]} 11. Qa4 {[%clk 0:02:40]}  Nd3 {[%clk 0:02:28]} 12. Qb5 {[%clk 0:02:40]}  c4 {[%clk 0:02:16]} 13. Ng5 {[%clk 0:02:03]}  Nxc1 {[%clk 0:01:54]} 14. Raxc1 {[%clk 0:02:00]}  Qxd2 {[%clk 0:01:53]} 15. Nxe6 {[%clk 0:01:52]}  Qxe3+ {[%clk 0:01:53]} 16. Kh1 {[%clk 0:01:53]}  Qxe6 {[%clk 0:01:35]} 17. Bxc4 {[%clk 0:01:52]}  Qd7 {[%clk 0:01:32]} 18. Rcd1 {[%clk 0:01:51]}  Qc8 {[%clk 0:01:28]} 19. f5 {[%clk 0:01:40]}  Nd4 {[%clk 0:01:16]} 20. Rxd4 {[%clk 0:00:49]}  Bxd4 {[%clk 0:01:17]} 21. fxg6 {[%clk 0:00:49]}  hxg6 {[%clk 0:01:16]} 22. Ne4 {[%clk 0:00:36]}  Kg7 {[%clk 0:01:08]} 23. Rxf7+ {[%clk 0:00:19]}  Rxf7 {[%clk 0:01:07]} 24. Qd5 {[%clk 0:00:20]}  Qf5 {[%clk 0:00:48]} 25. Qxd4+ {[%clk 0:00:20]}  e5 {[%clk 0:00:48]} 26. Qe3 {[%clk 0:00:17]}  Qf1+ {[%clk 0:00:45]} 27. Bxf1 {[%clk 0:00:17]}  Rxf1+ {[%clk 0:00:46]} 28. Qg1 {[%clk 0:00:17]}  Rxg1+ {[%clk 0:00:47]} 29. Kxg1 {[%clk 0:00:18]}  Rc8 {[%clk 0:00:47]} 30. b4 {[%clk 0:00:15]}  Rc1+ {[%clk 0:00:46]} 31. Kf2 {[%clk 0:00:15]}  Ra1 {[%clk 0:00:47]} 32. Nd6 {[%clk 0:00:14]}  b6 {[%clk 0:00:45]} 33. Nc4 {[%clk 0:00:14]}  Kf6 {[%clk 0:00:44]} 34. Ke3 {[%clk 0:00:13]}  Ke6 {[%clk 0:00:45]} 35. b5 {[%clk 0:00:11]}  Ra2 {[%clk 0:00:43]} 36. g4 {[%clk 0:00:10]}  Rxh2 {[%clk 0:00:42]} 37. Kd3 {[%clk 0:00:09]}  Rh3+ {[%clk 0:00:38]} 38. Ke4 {[%clk 0:00:09]}  Rh1 {[%clk 0:00:34]} 39. Kd3 {[%clk 0:00:04]}  Rb1 {[%clk 0:00:34]} 40. a4 {[%clk 0:00:00]}  Rb4 {[%clk 0:00:33]} 0-1

[Event "November 21 Late 2023"]
[Site "https://www.chess.com"]
[Date "2023.11.21"]
[Round "2"]
[White "Demchenko, Anton"]
[Black "Lamaze, Simon"]
[Result "1-0"]
[Board "20"]
[TimeControl "180+1"]
[WhiteFideId "4160258"]
[BlackFideId "36069264"]
[WhiteElo "2545"]
[BlackElo "2335"]
[WhiteTeam "SLO"]
[BlackTeam "FRA"]
[WhiteClock "0:00:05"]
[BlackClock "0:00:00"]

1. e4 {[%clk 0:03:00]}  c6 {[%clk 0:02:59]} 2. d4 {[%clk 0:03:00]}  d5 {[%clk 0:03:00]} 3. e5 {[%clk 0:03:01]}  Bf5 {[%clk 0:03:00]} 4. Bd3 {[%clk 0:03:01]}  Bxd3 {[%clk 0:02:59]} 5. Qxd3 {[%clk 0:03:02]}  e6 {[%clk 0:02:56]} 6. c3 {[%clk 0:03:03]}  c5 {[%clk 0:02:52]} 7. Ne2 {[%clk 0:03:04]}  Nc6 {[%clk 0:02:52]} 8. O-O {[%clk 0:03:03]}  Qa5 {[%clk 0:02:43]} 9. a3 {[%clk 0:03:00]}  Qa6 {[%clk 0:02:41]} 10. Qxa6 {[%clk 0:02:58]}  bxa6 {[%clk 0:02:42]} 11. b4 {[%clk 0:02:58]}  cxd4 {[%clk 0:02:31]} 12. cxd4 {[%clk 0:02:59]}  Nge7 {[%clk 0:02:30]} 13. Be3 {[%clk 0:02:55]}  Kd7 {[%clk 0:02:30]} 14. Nd2 {[%clk 0:02:44]}  Nf5 {[%clk 0:02:26]} 15. Nb3 {[%clk 0:02:44]}  Be7 {[%clk 0:02:25]} 16. Nc3 {[%clk 0:02:40]}  Rhc8 {[%clk 0:02:23]} 17. Na4 {[%clk 0:02:40]}  Ke8 {[%clk 0:02:17]} 18. Rfc1 {[%clk 0:02:27]}  f6 {[%clk 0:02:08]} 19. exf6 {[%clk 0:02:24]}  Bxf6 {[%clk 0:02:07]} 20. Rd1 {[%clk 0:02:24]}  Rab8 {[%clk 0:02:02]} 21. g4 {[%clk 0:01:36]}  Nxe3 {[%clk 0:01:58]} 22. fxe3 {[%clk 0:01:37]}  a5 {[%clk 0:01:58]} 23. Nac5 {[%clk 0:01:06]}  axb4 {[%clk 0:01:52]} 24. axb4 {[%clk 0:01:07]}  Rxb4 {[%clk 0:01:52]} 25. Na5 {[%clk 0:01:00]}  Kf7 {[%clk 0:01:41]} 26. Nxc6 {[%clk 0:01:00]}  Rxc6 {[%clk 0:01:42]} 27. Rxa7+ {[%clk 0:01:00]}  Kg6 {[%clk 0:01:42]} 28. Nd3 {[%clk 0:00:51]}  Rb3 {[%clk 0:01:35]} 29. Kf2 {[%clk 0:00:40]}  Rcc3 {[%clk 0:01:24]} 30. Ke2 {[%clk 0:00:30]}  Kg5 {[%clk 0:01:22]} 31. h3 {[%clk 0:00:23]}  Kh4 {[%clk 0:01:16]} 32. Rd2 {[%clk 0:00:23]}  Rb1 {[%clk 0:01:13]} 33. Ra6 {[%clk 0:00:04]}  Kxh3 {[%clk 0:01:07]} 34. g5 {[%clk 0:00:03]}  Bxg5 {[%clk 0:01:02]} 35. Rxe6 {[%clk 0:00:03]}  Rg1 {[%clk 0:00:37]} 36. Re5 {[%clk 0:00:04]}  Bh4 {[%clk 0:00:24]} 37. Rxd5 {[%clk 0:00:04]}  Rg2+ {[%clk 0:00:24]} 38. Kd1 {[%clk 0:00:04]}  Rxd2+ {[%clk 0:00:23]} 39. Kxd2 {[%clk 0:00:04]}  Ra3 {[%clk 0:00:23]} 40. Rd7 {[%clk 0:00:03]}  Bf6 {[%clk 0:00:22]} 41. Nf4+ {[%clk 0:00:02]}  Kg4 {[%clk 0:00:22]} 42. Nd5 {[%clk 0:00:03]}  Kf5 {[%clk 0:00:19]} 43. Nxf6 {[%clk 0:00:02]}  Kxf6 {[%clk 0:00:20]} 44. e4 {[%clk 0:00:03]}  h5 {[%clk 0:00:20]} 45. Rd6+ {[%clk 0:00:03]}  Kg5 {[%clk 0:00:20]} 46. e5 {[%clk 0:00:03]}  h4 {[%clk 0:00:20]} 47. Rd8 {[%clk 0:00:04]}  Kf5 {[%clk 0:00:18]} 48. Rh8 {[%clk 0:00:04]}  g5 {[%clk 0:00:18]} 49. Rf8+ {[%clk 0:00:04]}  Ke4 {[%clk 0:00:18]} 50. e6 {[%clk 0:00:04]}  Rd3+ {[%clk 0:00:17]} 51. Kc2 {[%clk 0:00:04]}  Re3 {[%clk 0:00:17]} 52. e7 {[%clk 0:00:04]}  Kxd4 {[%clk 0:00:16]} 53. e8=Q {[%clk 0:00:04]}  Rxe8 {[%clk 0:00:00]} 54. Rxe8 {[%clk 0:00:05]} 1-0

[Event "November 21 Late 2023"]
[Site "https://www.chess.com"]
[Date "2023.11.21"]
[Round "2"]
[White "Chigaev, Maksim"]
[Black "Erdogan, Anil Berk"]
[Result "1-0"]
[Board "24"]
[TimeControl "180+1"]
[WhiteFideId "4108116"]
[BlackFideId "6348173"]
[WhiteElo "2561"]
[BlackElo "2007"]
[WhiteTeam "ESP"]
[BlackTeam "TUR"]
[WhiteClock "0:01:12"]
[BlackClock "0:00:37"]

1. d4 {[%clk 0:03:00]}  Nf6 {[%clk 0:02:59]} 2. c4 {[%clk 0:03:00]}  c5 {[%clk 0:02:59]} 3. Nf3 {[%clk 0:02:59]}  cxd4 {[%clk 0:02:59]} 4. Nxd4 {[%clk 0:03:00]}  Nc6 {[%clk 0:02:59]} 5. Nc3 {[%clk 0:03:00]}  g6 {[%clk 0:03:00]} 6. e4 {[%clk 0:02:58]}  d6 {[%clk 0:03:00]} 7. f3 {[%clk 0:02:54]}  Nxd4 {[%clk 0:02:57]} 8. Qxd4 {[%clk 0:02:53]}  Bg7 {[%clk 0:02:58]} 9. Be3 {[%clk 0:02:52]}  O-O {[%clk 0:02:58]} 10. Qd2 {[%clk 0:02:52]}  Be6 {[%clk 0:02:57]} 11. Rc1 {[%clk 0:02:50]}  Qa5 {[%clk 0:02:57]} 12. Be2 {[%clk 0:02:47]}  Rfc8 {[%clk 0:02:58]} 13. b3 {[%clk 0:02:47]}  a6 {[%clk 0:02:57]} 14. Na4 {[%clk 0:02:47]}  Qxd2+ {[%clk 0:02:56]} 15. Kxd2 {[%clk 0:02:48]}  Nd7 {[%clk 0:02:56]} 16. g4 {[%clk 0:02:49]}  f5 {[%clk 0:02:56]} 17. exf5 {[%clk 0:02:49]}  gxf5 {[%clk 0:02:56]} 18. h3 {[%clk 0:02:50]}  Rf8 {[%clk 0:02:53]} 19. f4 {[%clk 0:02:47]}  Rad8 {[%clk 0:02:49]} 20. Bf3 {[%clk 0:02:33]}  Nc5 {[%clk 0:02:45]} 21. Nxc5 {[%clk 0:02:27]}  dxc5+ {[%clk 0:02:45]} 22. Ke2 {[%clk 0:02:28]}  b6 {[%clk 0:02:38]} 23. g5 {[%clk 0:02:24]}  Rd6 {[%clk 0:02:29]} 24. Rcd1 {[%clk 0:02:22]}  Rfd8 {[%clk 0:02:29]} 25. Rxd6 {[%clk 0:02:23]}  Rxd6 {[%clk 0:02:27]} 26. h4 {[%clk 0:02:23]}  Bd4 {[%clk 0:02:13]} 27. Rd1 {[%clk 0:02:07]}  Bxe3 {[%clk 0:01:38]} 28. Rxd6 {[%clk 0:02:04]}  exd6 {[%clk 0:01:38]} 29. Kxe3 {[%clk 0:02:04]}  Kg7 {[%clk 0:01:37]} 30. Kd3 {[%clk 0:01:59]}  Bd7 {[%clk 0:01:30]} 31. Kc3 {[%clk 0:01:58]}  a5 {[%clk 0:01:29]} 32. Bd5 {[%clk 0:01:54]}  Kf8 {[%clk 0:01:28]} 33. h5 {[%clk 0:01:51]}  Kg7 {[%clk 0:01:28]} 34. h6+ {[%clk 0:01:52]}  Kf8 {[%clk 0:01:21]} 35. Kb2 {[%clk 0:01:52]}  Bc8 {[%clk 0:01:11]} 36. Bc6 {[%clk 0:01:42]}  Kf7 {[%clk 0:01:09]} 37. Ka3 {[%clk 0:01:41]}  Kf8 {[%clk 0:00:54]} 38. Ka4 {[%clk 0:01:39]}  Ba6 {[%clk 0:00:50]} 39. Bd7 {[%clk 0:01:39]}  d5 {[%clk 0:00:45]} 40. Bxf5 {[%clk 0:01:25]}  dxc4 {[%clk 0:00:46]} 41. bxc4 {[%clk 0:01:24]}  Bxc4 {[%clk 0:00:46]} 42. Bxh7 {[%clk 0:01:24]}  Bxa2 {[%clk 0:00:46]} 43. g6 {[%clk 0:01:25]}  Bg8 {[%clk 0:00:39]} 44. Bxg8 {[%clk 0:01:11]}  Kxg8 {[%clk 0:00:39]} 45. h7+ {[%clk 0:01:10]}  Kh8 {[%clk 0:00:35]} 46. f5 {[%clk 0:01:11]}  c4 {[%clk 0:00:35]} 47. f6 {[%clk 0:01:11]}  b5+ {[%clk 0:00:36]} 48. Kxb5 {[%clk 0:01:11]}  c3 {[%clk 0:00:36]} 49. f7 {[%clk 0:01:12]}  Kg7 {[%clk 0:00:37]} 50. h8=Q+ {[%clk 0:01:12]}  Kxh8 {[%clk 0:00:37]} 51. f8=Q# {[%clk 0:01:12]} 1-0

[Event "November 21 Late 2023"]
[Site "https://www.chess.com"]
[Date "2023.11.21"]
[Round "2"]
[White "Statham_l3"]
[Black "Gholami Orimi, Mahdi"]
[Result "1-0"]
[Board "25"]
[TimeControl "180+1"]
[BlackFideId "12558486"]
[WhiteElo "2587"]
[BlackElo "2331"]
[BlackTeam "IRI"]
[WhiteClock "0:00:08"]
[BlackClock "0:00:17"]

1. e4 {[%clk 0:02:54]}  c5 {[%clk 0:02:57]} 2. Nf3 {[%clk 0:02:54]}  d6 {[%clk 0:02:57]} 3. d4 {[%clk 0:02:54]}  cxd4 {[%clk 0:02:57]} 4. Nxd4 {[%clk 0:02:55]}  Nf6 {[%clk 0:02:58]} 5. Nc3 {[%clk 0:02:54]}  Nc6 {[%clk 0:02:50]} 6. Be3 {[%clk 0:02:50]}  Ng4 {[%clk 0:02:44]} 7. Bb5 {[%clk 0:02:49]}  Nxe3 {[%clk 0:02:40]} 8. fxe3 {[%clk 0:02:50]}  Bd7 {[%clk 0:02:38]} 9. O-O {[%clk 0:02:50]}  Ne5 {[%clk 0:02:33]} 10. Nf3 {[%clk 0:02:49]}  Bxb5 {[%clk 0:02:16]} 11. Nxb5 {[%clk 0:01:46]}  a6 {[%clk 0:02:12]} 12. Nxe5 {[%clk 0:01:34]}  dxe5 {[%clk 0:02:13]} 13. Qh5 {[%clk 0:01:23]}  g6 {[%clk 0:01:39]} 14. Qxe5 {[%clk 0:01:22]}  axb5 {[%clk 0:01:39]} 15. Qxh8 {[%clk 0:01:22]}  Qd2 {[%clk 0:01:35]} 16. Qxh7 {[%clk 0:00:45]}  O-O-O {[%clk 0:01:23]} 17. Qh3+ {[%clk 0:00:29]}  Kb8 {[%clk 0:01:22]} 18. Rad1 {[%clk 0:00:23]}  Qxd1 {[%clk 0:01:22]} 19. Rxd1 {[%clk 0:00:23]}  Rxd1+ {[%clk 0:01:22]} 20. Kf2 {[%clk 0:00:24]}  Bg7 {[%clk 0:01:23]} 21. Ke2 {[%clk 0:00:20]}  Rb1 {[%clk 0:01:19]} 22. b3 {[%clk 0:00:20]}  Rb2 {[%clk 0:01:20]} 23. Kd3 {[%clk 0:00:19]}  Rxa2 {[%clk 0:01:20]} 24. Qh7 {[%clk 0:00:17]}  Bf6 {[%clk 0:01:20]} 25. Qxf7 {[%clk 0:00:14]}  g5 {[%clk 0:01:19]} 26. Qe8+ {[%clk 0:00:14]}  Ka7 {[%clk 0:01:19]} 27. Qxb5 {[%clk 0:00:15]}  Ra1 {[%clk 0:01:17]} 28. e5 {[%clk 0:00:16]}  Bh8 {[%clk 0:01:11]} 29. Qc5+ {[%clk 0:00:16]}  Ka6 {[%clk 0:01:10]} 30. Qxe7 {[%clk 0:00:15]}  Ra5 {[%clk 0:01:10]} 31. b4 {[%clk 0:00:11]}  Rxe5 {[%clk 0:01:07]} 32. Qd6+ {[%clk 0:00:11]}  Ka7 {[%clk 0:01:07]} 33. c4 {[%clk 0:00:08]}  Re8 {[%clk 0:00:59]} 34. Ke2 {[%clk 0:00:07]}  Be5 {[%clk 0:00:54]} 35. Qc5+ {[%clk 0:00:07]}  Kb8 {[%clk 0:00:51]} 36. g3 {[%clk 0:00:06]}  g4 {[%clk 0:00:49]} 37. Qb5 {[%clk 0:00:07]}  Re7 {[%clk 0:00:49]} 38. Qc5 {[%clk 0:00:07]}  Re8 {[%clk 0:00:49]} 39. Qd5 {[%clk 0:00:08]}  Bc7 {[%clk 0:00:43]} 40. c5 {[%clk 0:00:07]}  Rh8 {[%clk 0:00:44]} 41. Qg2 {[%clk 0:00:06]}  Rh5 {[%clk 0:00:41]} 42. e4 {[%clk 0:00:06]}  Be5 {[%clk 0:00:36]} 43. Qf2 {[%clk 0:00:06]}  Bc3 {[%clk 0:00:27]} 44. Qf8+ {[%clk 0:00:04]}  Ka7 {[%clk 0:00:26]} 45. c6 {[%clk 0:00:04]}  Rxh2+ {[%clk 0:00:23]} 46. Kd3 {[%clk 0:00:04]}  Be5 {[%clk 0:00:21]} 47. Qf7 {[%clk 0:00:03]}  Rh7 {[%clk 0:00:12]} 48. Qxh7 {[%clk 0:00:03]}  Bc7 {[%clk 0:00:11]} 49. Qf5 {[%clk 0:00:04]}  bxc6 {[%clk 0:00:10]} 50. Qxg4 {[%clk 0:00:05]}  c5 {[%clk 0:00:11]} 51. Qe2 {[%clk 0:00:06]}  cxb4 {[%clk 0:00:11]} 52. Kc4 {[%clk 0:00:07]}  Bd6 {[%clk 0:00:12]} 53. e5 {[%clk 0:00:07]}  Be7 {[%clk 0:00:12]} 54. e6 {[%clk 0:00:07]}  Kb6 {[%clk 0:00:13]} 55. Qe3+ {[%clk 0:00:07]}  Kc6 {[%clk 0:00:13]} 56. Qe4+ {[%clk 0:00:07]}  Kc7 {[%clk 0:00:13]} 57. Qe5+ {[%clk 0:00:07]}  Bd6 {[%clk 0:00:14]} 58. Qg7+ {[%clk 0:00:07]}  Kc6 {[%clk 0:00:15]} 59. Qd7+ {[%clk 0:00:07]}  Kb6 {[%clk 0:00:15]} 60. Qxd6+ {[%clk 0:00:08]}  Ka5 {[%clk 0:00:16]} 61. e7 {[%clk 0:00:09]}  Ka4 {[%clk 0:00:17]} 62. Qxb4# {[%clk 0:00:08]} 1-0

[Event "November 21 Late 2023"]
[Site "https://www.chess.com"]
[Date "2023.11.21"]
[Round "2"]
[White "Khismatullin, Denis"]
[Black "Leiva, Gianmarco"]
[Result "1-0"]
[Board "26"]
[TimeControl "180+1"]
[WhiteFideId "4142578"]
[BlackFideId "3804399"]
[WhiteElo "2552"]
[BlackElo "2335"]
[WhiteTeam "RUS"]
[BlackTeam "PER"]
[WhiteClock "0:00:44"]
[BlackClock "0:00:01"]

1. e4 {[%clk 0:03:00]}  g6 {[%clk 0:02:59]} 2. d4 {[%clk 0:02:58]}  Bg7 {[%clk 0:03:00]} 3. Nf3 {[%clk 0:02:58]}  d6 {[%clk 0:03:00]} 4. Be2 {[%clk 0:02:58]}  Nf6 {[%clk 0:02:55]} 5. Nc3 {[%clk 0:02:57]}  O-O {[%clk 0:02:55]} 6. O-O {[%clk 0:02:57]}  Nc6 {[%clk 0:02:54]} 7. d5 {[%clk 0:02:50]}  Nb4 {[%clk 0:02:54]} 8. Be3 {[%clk 0:02:45]}  c5 {[%clk 0:02:53]} 9. a3 {[%clk 0:02:40]}  Na6 {[%clk 0:02:54]} 10. Qd2 {[%clk 0:02:37]}  Re8 {[%clk 0:02:53]} 11. Rad1 {[%clk 0:02:33]}  Nc7 {[%clk 0:02:49]} 12. Bh6 {[%clk 0:02:23]}  Bh8 {[%clk 0:02:45]} 13. h3 {[%clk 0:02:18]}  Nd7 {[%clk 0:02:19]} 14. Ng5 {[%clk 0:02:12]}  Rb8 {[%clk 0:02:14]} 15. Qf4 {[%clk 0:02:07]}  Nf6 {[%clk 0:02:02]} 16. Qh4 {[%clk 0:01:58]}  b5 {[%clk 0:02:00]} 17. b4 {[%clk 0:01:52]}  cxb4 {[%clk 0:01:13]} 18. axb4 {[%clk 0:01:53]}  Bd7 {[%clk 0:01:14]} 19. f4 {[%clk 0:01:50]}  Nh5 {[%clk 0:01:12]} 20. e5 {[%clk 0:01:37]}  Na6 {[%clk 0:00:24]} 21. Bxh5 {[%clk 0:01:28]}  Nxb4 {[%clk 0:00:20]} 22. Bg4 {[%clk 0:01:12]}  Bxg4 {[%clk 0:00:19]} 23. hxg4 {[%clk 0:01:12]}  Nxc2 {[%clk 0:00:18]} 24. Bf8 {[%clk 0:01:00]}  Kxf8 {[%clk 0:00:09]} 25. Qxh7 {[%clk 0:00:59]}  Bg7 {[%clk 0:00:10]} 26. f5 {[%clk 0:00:52]}  Qb6+ {[%clk 0:00:02]} 27. Kh1 {[%clk 0:00:52]}  gxf5 {[%clk 0:00:02]} 28. Rxf5 {[%clk 0:00:45]}  f6 {[%clk 0:00:01]} 29. Ne6+ {[%clk 0:00:44]} 1-0

[Event "November 21 Late 2023"]
[Site "https://www.chess.com"]
[Date "2023.11.21"]
[Round "2"]
[White "GatoRojo150"]
[Black "Rasulov, Vugar"]
[Result "1/2-1/2"]
[Board "27"]
[TimeControl "180+1"]
[BlackFideId "13402390"]
[WhiteElo "2582"]
[BlackElo "2517"]
[BlackTeam "AZE"]
[WhiteClock "0:00:04"]
[BlackClock "0:00:03"]

1. e4 {[%clk 0:03:00]}  e5 {[%clk 0:02:58]} 2. Nf3 {[%clk 0:03:00]}  Nc6 {[%clk 0:02:58]} 3. Nc3 {[%clk 0:03:01]}  Nf6 {[%clk 0:02:55]} 4. Bb5 {[%clk 0:03:01]}  Bd6 {[%clk 0:02:54]} 5. d3 {[%clk 0:03:00]}  h6 {[%clk 0:02:53]} 6. a3 {[%clk 0:03:01]}  Nd4 {[%clk 0:02:50]} 7. Nxd4 {[%clk 0:02:58]}  exd4 {[%clk 0:02:50]} 8. Ne2 {[%clk 0:02:59]}  Bc5 {[%clk 0:02:46]} 9. O-O {[%clk 0:02:49]}  c6 {[%clk 0:02:45]} 10. Bc4 {[%clk 0:02:47]}  d6 {[%clk 0:02:37]} 11. Ng3 {[%clk 0:02:45]}  Be6 {[%clk 0:02:35]} 12. Bxe6 {[%clk 0:02:42]}  fxe6 {[%clk 0:02:36]} 13. f4 {[%clk 0:02:41]}  Qd7 {[%clk 0:02:34]} 14. f5 {[%clk 0:02:42]}  e5 {[%clk 0:02:33]} 15. Nh5 {[%clk 0:02:37]}  O-O-O {[%clk 0:02:28]} 16. b4 {[%clk 0:02:36]}  Bb6 {[%clk 0:02:29]} 17. a4 {[%clk 0:02:36]}  Qf7 {[%clk 0:02:28]} 18. Nxf6 {[%clk 0:02:30]}  gxf6 {[%clk 0:02:29]} 19. b5 {[%clk 0:02:22]}  cxb5 {[%clk 0:02:25]} 20. axb5 {[%clk 0:02:22]}  d5 {[%clk 0:02:22]} 21. Qf3 {[%clk 0:02:16]}  h5 {[%clk 0:02:17]} 22. Bd2 {[%clk 0:02:13]}  dxe4 {[%clk 0:02:09]} 23. dxe4 {[%clk 0:02:08]}  d3+ {[%clk 0:02:07]} 24. Be3 {[%clk 0:02:08]}  dxc2 {[%clk 0:01:40]} 25. Bxb6 {[%clk 0:02:06]}  axb6 {[%clk 0:01:41]} 26. Qc3+ {[%clk 0:01:55]}  Kb8 {[%clk 0:01:40]} 27. Qxc2 {[%clk 0:01:49]}  Rhg8 {[%clk 0:01:12]} 28. Rfc1 {[%clk 0:01:35]}  Rc8 {[%clk 0:01:10]} 29. Qa4 {[%clk 0:01:28]}  Rxc1+ {[%clk 0:01:09]} 30. Rxc1 {[%clk 0:01:29]}  Qd7 {[%clk 0:01:00]} 31. Qc4 {[%clk 0:01:22]}  Rg4 {[%clk 0:00:52]} 32. h3 {[%clk 0:01:17]}  Rg3 {[%clk 0:00:47]} 33. Kh2 {[%clk 0:01:15]}  h4 {[%clk 0:00:47]} 34. Qb4 {[%clk 0:01:08]}  Rg8 {[%clk 0:00:41]} 35. Rc2 {[%clk 0:00:42]}  Qd3 {[%clk 0:00:26]} 36. Rc3 {[%clk 0:00:26]}  Qd4 {[%clk 0:00:17]} 37. Rc4 {[%clk 0:00:14]}  Qd3 {[%clk 0:00:13]} 38. Rc3 {[%clk 0:00:13]}  Qd1 {[%clk 0:00:11]} 39. Qc4 {[%clk 0:00:08]}  Qd8 {[%clk 0:00:04]} 40. Rd3 {[%clk 0:00:07]}  Qf8 {[%clk 0:00:04]} 41. Rd7 {[%clk 0:00:06]}  Qc8 {[%clk 0:00:04]} 42. Qe6 {[%clk 0:00:05]}  Rg3 {[%clk 0:00:03]} 43. Qd6+ {[%clk 0:00:04]}  Ka7 {[%clk 0:00:04]} 44. Qa3+ {[%clk 0:00:04]}  Kb8 {[%clk 0:00:04]} 45. Qd6+ {[%clk 0:00:04]}  Ka7 {[%clk 0:00:05]} 46. Rd8 {[%clk 0:00:04]}  Rxg2+ {[%clk 0:00:05]} 47. Kxg2 {[%clk 0:00:05]}  Qc2+ {[%clk 0:00:05]} 48. Qd2 {[%clk 0:00:04]}  Qxe4+ {[%clk 0:00:05]} 49. Kh2 {[%clk 0:00:05]}  Qc4 {[%clk 0:00:04]} 50. Qd3 {[%clk 0:00:03]}  Qa2+ {[%clk 0:00:04]} 51. Qd2 {[%clk 0:00:04]}  Qc4 {[%clk 0:00:03]} 52. Qd3 {[%clk 0:00:04]}  Qa2+ {[%clk 0:00:03]} 53. Kg1 {[%clk 0:00:04]}  Qa1+ {[%clk 0:00:03]} 54. Qd1 {[%clk 0:00:04]}  Qa3 {[%clk 0:00:03]} 55. Qd3 {[%clk 0:00:04]}  Qc1+ {[%clk 0:00:02]} 56. Kf2 {[%clk 0:00:04]}  Qb2+ {[%clk 0:00:02]} 57. Ke1 {[%clk 0:00:03]}  Qa1+ {[%clk 0:00:02]} 58. Ke2 {[%clk 0:00:04]}  Qb2+ {[%clk 0:00:03]} 59. Kf3 {[%clk 0:00:04]}  Qb4 {[%clk 0:00:02]} 60. Ke2 {[%clk 0:00:02]}  Qb2+ {[%clk 0:00:02]} 61. Qd2 {[%clk 0:00:02]}  Qxb5+ {[%clk 0:00:03]} 62. Qd3 {[%clk 0:00:03]}  Qb2+ {[%clk 0:00:03]} 63. Qd2 {[%clk 0:00:03]}  Qb3 {[%clk 0:00:03]} 64. Qd3 {[%clk 0:00:03]}  Qb2+ {[%clk 0:00:03]} 65. Qd2 {[%clk 0:00:04]}  Qb5+ {[%clk 0:00:04]} 66. Qd3 {[%clk 0:00:04]}  Qb2+ {[%clk 0:00:03]} 1/2-1/2

[Event "November 21 Late 2023"]
[Site "https://www.chess.com"]
[Date "2023.11.21"]
[Round "2"]
[White "Ibarra Jerez, Jose Carlos"]
[Black "Guerra Tulcan, Lenin"]
[Result "1-0"]
[Board "28"]
[TimeControl "180+1"]
[WhiteFideId "2226332"]
[BlackFideId "3601382"]
[WhiteElo "2634"]
[BlackElo "2368"]
[WhiteTeam "ESP"]
[BlackTeam "ECU"]
[WhiteClock "0:01:21"]
[BlackClock "0:00:55"]

1. e4 {[%clk 0:02:57]}  c5 {[%clk 0:02:59]} 2. Nf3 {[%clk 0:02:55]}  e6 {[%clk 0:02:59]} 3. d4 {[%clk 0:02:54]}  cxd4 {[%clk 0:03:00]} 4. Nxd4 {[%clk 0:02:55]}  Nc6 {[%clk 0:03:00]} 5. Nc3 {[%clk 0:02:55]}  Qc7 {[%clk 0:03:01]} 6. g4 {[%clk 0:02:54]}  a6 {[%clk 0:03:00]} 7. Be3 {[%clk 0:02:54]}  b5 {[%clk 0:03:00]} 8. Nxc6 {[%clk 0:02:54]}  dxc6 {[%clk 0:03:01]} 9. Qf3 {[%clk 0:02:51]}  Bb7 {[%clk 0:02:59]} 10. O-O-O {[%clk 0:02:44]}  Ne7 {[%clk 0:02:57]} 11. g5 {[%clk 0:02:42]}  Nc8 {[%clk 0:02:41]} 12. h4 {[%clk 0:02:39]}  Bb4 {[%clk 0:02:40]} 13. Bd4 {[%clk 0:02:29]}  e5 {[%clk 0:02:06]} 14. Qg3 {[%clk 0:02:27]}  Bd6 {[%clk 0:02:06]} 15. Be3 {[%clk 0:02:22]}  O-O {[%clk 0:01:37]} 16. h5 {[%clk 0:02:20]}  Bb4 {[%clk 0:01:34]} 17. g6 {[%clk 0:02:10]}  fxg6 {[%clk 0:01:21]} 18. hxg6 {[%clk 0:02:09]}  h6 {[%clk 0:01:22]} 19. Bh3 {[%clk 0:02:07]}  Rf6 {[%clk 0:01:17]} 20. Rd7 {[%clk 0:02:02]}  Qa5 {[%clk 0:01:11]} 21. Qxe5 {[%clk 0:01:48]}  Nd6 {[%clk 0:01:07]} 22. Be6+ {[%clk 0:01:46]}  Kf8 {[%clk 0:01:03]} 23. Qxf6+ {[%clk 0:01:34]}  gxf6 {[%clk 0:00:55]} 24. g7+ {[%clk 0:01:21]} 1-0

[Event "November 21 Late 2023"]
[Site "https://www.chess.com"]
[Date "2023.11.21"]
[Round "2"]
[White "Shimanov, Aleksandr"]
[Black "ArtemDyachuk"]
[Result "1-0"]
[Board "30"]
[TimeControl "180+1"]
[WhiteFideId "4198603"]
[WhiteElo "2611"]
[BlackElo "2574"]
[WhiteTeam "RUS"]
[WhiteClock "0:01:27"]
[BlackClock "0:00:04"]

1. e4 {[%clk 0:02:59]}  c5 {[%clk 0:02:58]} 2. Nf3 {[%clk 0:02:58]}  d6 {[%clk 0:02:57]} 3. d4 {[%clk 0:02:55]}  cxd4 {[%clk 0:02:57]} 4. Nxd4 {[%clk 0:02:56]}  Nf6 {[%clk 0:02:57]} 5. f3 {[%clk 0:02:55]}  e6 {[%clk 0:02:38]} 6. Nc3 {[%clk 0:02:52]}  a6 {[%clk 0:02:35]} 7. Be3 {[%clk 0:02:52]}  Qc7 {[%clk 0:02:32]} 8. Qd2 {[%clk 0:02:50]}  Nbd7 {[%clk 0:02:31]} 9. g4 {[%clk 0:02:50]}  h6 {[%clk 0:02:30]} 10. h4 {[%clk 0:02:49]}  Be7 {[%clk 0:02:30]} 11. Rg1 {[%clk 0:02:49]}  b5 {[%clk 0:02:26]} 12. g5 {[%clk 0:02:47]}  hxg5 {[%clk 0:02:25]} 13. hxg5 {[%clk 0:02:48]}  Nh5 {[%clk 0:02:24]} 14. O-O-O {[%clk 0:02:41]}  b4 {[%clk 0:02:22]} 15. Na4 {[%clk 0:02:41]}  Rb8 {[%clk 0:02:12]} 16. g6 {[%clk 0:02:40]}  Ne5 {[%clk 0:01:43]} 17. gxf7+ {[%clk 0:02:40]}  Nxf7 {[%clk 0:01:44]} 18. Bh3 {[%clk 0:02:33]}  Qa5 {[%clk 0:01:20]} 19. b3 {[%clk 0:02:28]}  Nd8 {[%clk 0:01:15]} 20. f4 {[%clk 0:02:18]}  Nf6 {[%clk 0:01:00]} 21. Qg2 {[%clk 0:02:08]}  Bd7 {[%clk 0:00:12]} 22. Qg6+ {[%clk 0:02:06]}  Nf7 {[%clk 0:00:12]} 23. Bxe6 {[%clk 0:02:05]}  Rf8 {[%clk 0:00:08]} 24. Bxd7+ {[%clk 0:02:01]}  Kxd7 {[%clk 0:00:08]} 25. e5 {[%clk 0:02:00]}  Nd5 {[%clk 0:00:08]} 26. Qe6+ {[%clk 0:01:52]}  Ke8 {[%clk 0:00:07]} 27. Nf5 {[%clk 0:01:51]}  Nd8 {[%clk 0:00:04]} 28. Nxg7# {[%clk 0:01:27]} 1-0